[Event "*** SCC Grand Prix: Titled Tuesday Blitz"]
[Site "Chess.com"]
[Date "2020.06.02"]
[Round "7"]
[White "Misticpikachu"]
[Black "djano"]
[Result "1-0"]
[WhiteElo "2270"]
[BlackElo "2413"]
[TimeControl "180+1"]
[EndTime "11:17:48 PDT"]
[Termination "Misticpikachu won by resignation"]

1. c4 {[%clk 0:03:00.9]} 1... Nf6 {[%clk 0:02:59.5]} 2. Nc3 {[%clk 0:03:01]}
2... e6 {[%clk 0:02:56.7]} 3. e4 {[%clk 0:03:00.5]} 3... c5 {[%clk 0:02:54.3]}
4. Nf3 {[%clk 0:03:00.3]} 4... d6 {[%clk 0:02:51.4]} 5. d4 {[%clk 0:02:58.8]}
5... cxd4 {[%clk 0:02:51.4]} 6. Nxd4 {[%clk 0:02:59.7]} 6... a6 {[%clk
0:02:51.8]} 7. Be3 {[%clk 0:02:59.8]} 7... b6 {[%clk 0:02:50.7]} 8. Be2 {[%clk
0:02:56.3]} 8... Bb7 {[%clk 0:02:50.5]} 9. f3 {[%clk 0:02:55.4]} 9... Nbd7
{[%clk 0:02:50.4]} 10. O-O {[%clk 0:02:54.8]} 10... Be7 {[%clk 0:02:50.8]} 11.
Rc1 {[%clk 0:02:48.4]} 11... O-O {[%clk 0:02:50.6]} 12. Qd2 {[%clk 0:02:46.2]}
12... Ra7 {[%clk 0:02:39.4]} 13. b4 {[%clk 0:02:42.1]} 13... Qa8 {[%clk
0:02:36.4]} 14. Rfd1 {[%clk 0:02:37.6]} 14... Rd8 {[%clk 0:02:34.3]} 15. a4
{[%clk 0:02:28.9]} 15... d5 {[%clk 0:02:26.3]} 16. cxd5 {[%clk 0:02:24.8]} 16...
exd5 {[%clk 0:02:25.9]} 17. exd5 {[%clk 0:02:23.3]} 17... Nxd5 {[%clk
0:02:20.8]} 18. Nxd5 {[%clk 0:02:22.9]} 18... Bxd5 {[%clk 0:02:21.7]} 19. Nf5
{[%clk 0:02:11.6]} 19... Ne5 {[%clk 0:02:02.3]} 20. Bxb6 {[%clk 0:02:02]} 20...
Rdd7 {[%clk 0:00:37]} 21. Nxe7+ {[%clk 0:01:47.1]} 21... Rxe7 {[%clk 0:00:37.9]}
22. Qxd5 {[%clk 0:01:39.2]} 1-0

[Event "*** SCC Grand Prix: Titled Tuesday Blitz"]
[Site "Chess.com"]
[Date "2020.06.02"]
[Round "7"]
[White "chenxiaoyuer"]
[Black "kingofthenil"]
[Result "1-0"]
[WhiteElo "2337"]
[BlackElo "2445"]
[TimeControl "180+1"]
[EndTime "11:17:58 PDT"]
[Termination "chenxiaoyuer won by resignation"]

1. e4 {[%clk 0:03:00.9]} 1... Nc6 {[%clk 0:02:58.9]} 2. Nf3 {[%clk 0:02:58.4]}
2... d5 {[%clk 0:02:59.2]} 3. exd5 {[%clk 0:02:56.1]} 3... Qxd5 {[%clk
0:03:00.1]} 4. Nc3 {[%clk 0:02:55.6]} 4... Qh5 {[%clk 0:02:57.2]} 5. Nb5 {[%clk
0:02:54.8]} 5... Bg4 {[%clk 0:02:58.1]} 6. Nxc7+ {[%clk 0:02:54.2]} 6... Kd8
{[%clk 0:02:58.9]} 7. Nxa8 {[%clk 0:02:53.1]} 7... e5 {[%clk 0:02:59.5]} 8. d3
{[%clk 0:02:48.5]} 8... Nf6 {[%clk 0:02:58.3]} 9. Be2 {[%clk 0:02:47.2]} 9...
Kc8 {[%clk 0:02:57.4]} 10. h3 {[%clk 0:02:44.1]} 10... Kb8 {[%clk 0:02:56.3]}
11. Ng1 {[%clk 0:02:39.1]} 11... Bxe2 {[%clk 0:02:54.6]} 12. Qxe2 {[%clk
0:02:38.7]} 12... Qg6 {[%clk 0:02:55]} 13. Nf3 {[%clk 0:02:27]} 13... Bd6 {[%clk
0:02:50.5]} 14. Nh4 {[%clk 0:02:18.5]} 14... Qh5 {[%clk 0:02:48.8]} 15. Qxh5
{[%clk 0:02:18]} 15... Nxh5 {[%clk 0:02:49.7]} 16. Nf3 {[%clk 0:02:16.5]} 16...
Nb4 {[%clk 0:02:39.8]} 17. Kd1 {[%clk 0:02:12.4]} 17... Kxa8 {[%clk 0:02:30.1]}
18. a3 {[%clk 0:01:55.5]} 18... Nd5 {[%clk 0:02:30]} 19. g3 {[%clk 0:01:53.9]}
19... f5 {[%clk 0:02:20.8]} 20. Re1 {[%clk 0:01:51.8]} 20... Re8 {[%clk
0:02:19.1]} 21. c4 {[%clk 0:01:47]} 21... Nb6 {[%clk 0:02:03.9]} 22. b4 {[%clk
0:01:32.5]} 22... e4 {[%clk 0:02:00.5]} 23. c5 {[%clk 0:01:31.5]} 23... Rd8
{[%clk 0:01:57.8]} 24. cxd6 {[%clk 0:01:27.3]} 24... exf3 {[%clk 0:01:58.7]} 25.
Bg5 {[%clk 0:01:22.9]} 25... Rb8 {[%clk 0:01:51.5]} 26. Re7 {[%clk 0:01:16.1]}
26... Nd5 {[%clk 0:01:47.6]} 27. d7 {[%clk 0:01:14.5]} 27... Nhf6 {[%clk
0:01:36.3]} 28. Bxf6 {[%clk 0:01:11.5]} 28... Nxf6 {[%clk 0:01:36.8]} 29. Rc1
{[%clk 0:01:10.7]} 29... g5 {[%clk 0:01:32.1]} 30. Re8 {[%clk 0:01:00.8]} 30...
Nxe8 {[%clk 0:01:30.8]} 31. Rc8 {[%clk 0:01:00.4]} 31... Nd6 {[%clk 0:01:25.9]}
32. Rxb8+ {[%clk 0:01:00]} 32... Kxb8 {[%clk 0:01:26.8]} 33. d8=Q+ {[%clk
0:01:00.2]} 33... Nc8 {[%clk 0:01:27.7]} 34. Qxg5 {[%clk 0:01:00.4]} 1-0

[Event "*** SCC Grand Prix: Titled Tuesday Blitz"]
[Site "Chess.com"]
[Date "2020.06.02"]
[Round "7"]
[White "Anna_ChessMate"]
[Black "ErikRonka"]
[Result "1-0"]
[WhiteElo "2550"]
[BlackElo "2394"]
[TimeControl "180+1"]
[EndTime "11:17:59 PDT"]
[Termination "Anna_ChessMate won by resignation"]

1. d4 {[%clk 0:02:59.6]} 1... d5 {[%clk 0:02:55.6]} 2. c4 {[%clk 0:02:59.8]}
2... e5 {[%clk 0:02:50]} 3. dxe5 {[%clk 0:02:57.5]} 3... d4 {[%clk 0:02:50.9]}
4. Nf3 {[%clk 0:02:55.3]} 4... Nc6 {[%clk 0:02:51.4]} 5. g3 {[%clk 0:02:54.9]}
5... f6 {[%clk 0:02:34]} 6. exf6 {[%clk 0:02:53.4]} 6... Nxf6 {[%clk 0:02:34.7]}
7. Bg2 {[%clk 0:02:54]} 7... Bg4 {[%clk 0:02:34.3]} 8. O-O {[%clk 0:02:53.9]}
8... Qd7 {[%clk 0:02:33.7]} 9. a3 {[%clk 0:02:51.5]} 9... O-O-O {[%clk
0:02:19.2]} 10. b4 {[%clk 0:02:51.5]} 10... Bh3 {[%clk 0:02:07.4]} 11. b5 {[%clk
0:02:46.5]} 11... Bxg2 {[%clk 0:02:04.8]} 12. Kxg2 {[%clk 0:02:46.3]} 12... Ne7
{[%clk 0:02:00.4]} 13. Nbd2 {[%clk 0:02:37.3]} 13... Nf5 {[%clk 0:01:47.8]} 14.
Nb3 {[%clk 0:02:34.3]} 14... h5 {[%clk 0:01:38.4]} 15. Qd3 {[%clk 0:02:33.1]}
15... h4 {[%clk 0:01:36.9]} 16. Bf4 {[%clk 0:02:25]} 16... hxg3 {[%clk
0:01:28.4]} 17. fxg3 {[%clk 0:02:23.1]} 17... Ng4 {[%clk 0:01:12.7]} 18. Kg1
{[%clk 0:02:07.3]} 18... Nfe3 {[%clk 0:00:53.6]} 19. Bxe3 {[%clk 0:01:57.9]}
19... Nxe3 {[%clk 0:00:53.3]} 20. Rf2 {[%clk 0:01:57.9]} 20... Nf5 {[%clk
0:00:37.8]} 21. Ne5 {[%clk 0:01:57]} 21... Qe6 {[%clk 0:00:19.4]} 22. Qxf5
{[%clk 0:01:56.7]} 1-0

[Event "*** SCC Grand Prix: Titled Tuesday Blitz"]
[Site "Chess.com"]
[Date "2020.06.02"]
[Round "7"]
[White "Titus369"]
[Black "AndrewDGreen"]
[Result "0-1"]
[WhiteElo "2565"]
[BlackElo "2350"]
[TimeControl "180+1"]
[EndTime "11:18:07 PDT"]
[Termination "AndrewDGreen won by resignation"]

1. e4 {[%clk 0:03:00.9]} 1... c5 {[%clk 0:02:59.7]} 2. Nf3 {[%clk 0:03:00]} 2...
g6 {[%clk 0:02:59.3]} 3. d4 {[%clk 0:03:00.4]} 3... cxd4 {[%clk 0:03:00.2]} 4.
Nxd4 {[%clk 0:03:01]} 4... Nc6 {[%clk 0:03:00.1]} 5. c4 {[%clk 0:03:00.9]} 5...
Nf6 {[%clk 0:02:59.8]} 6. Nc3 {[%clk 0:02:58.4]} 6... Nxd4 {[%clk 0:03:00]} 7.
Qxd4 {[%clk 0:02:58.1]} 7... d6 {[%clk 0:03:00.6]} 8. Be2 {[%clk 0:02:52]} 8...
Bg7 {[%clk 0:03:01.1]} 9. Be3 {[%clk 0:02:50.3]} 9... O-O {[%clk 0:03:01.3]} 10.
Qd2 {[%clk 0:02:45.3]} 10... a5 {[%clk 0:03:01.2]} 11. O-O {[%clk 0:02:39.2]}
11... a4 {[%clk 0:02:59.8]} 12. Rac1 {[%clk 0:02:23.5]} 12... Qa5 {[%clk
0:02:57.7]} 13. f4 {[%clk 0:02:16.8]} 13... Bd7 {[%clk 0:02:15.2]} 14. Bf3
{[%clk 0:02:10.9]} 14... Rfc8 {[%clk 0:02:13.7]} 15. b3 {[%clk 0:02:07.6]} 15...
axb3 {[%clk 0:02:12.2]} 16. axb3 {[%clk 0:02:08.5]} 16... Qb4 {[%clk 0:02:11]}
17. Qd1 {[%clk 0:01:57.3]} 17... Ra3 {[%clk 0:02:00.1]} 18. Nd5 {[%clk
0:01:50.2]} 18... Nxd5 {[%clk 0:01:57.3]} 19. cxd5 {[%clk 0:01:45.9]} 19... Rxb3
{[%clk 0:01:25.6]} 20. Rxc8+ {[%clk 0:01:34.1]} 20... Bxc8 {[%clk 0:01:26.5]}
21. Bf2 {[%clk 0:01:34.8]} 21... Bd7 {[%clk 0:01:14.3]} 22. Qc2 {[%clk
0:01:28.9]} 22... Rc3 {[%clk 0:01:09.3]} 23. Qa2 {[%clk 0:01:26.6]} 23... Bd4
{[%clk 0:01:04]} 24. Qa8+ {[%clk 0:01:16.4]} 24... Kg7 {[%clk 0:01:03.5]} 25.
Qd8 {[%clk 0:01:14.4]} 25... Bxf2+ {[%clk 0:00:55.4]} 26. Rxf2 {[%clk
0:01:12.3]} 26... Rc1+ {[%clk 0:00:49.8]} 0-1

[Event "*** SCC Grand Prix: Titled Tuesday Blitz"]
[Site "Chess.com"]
[Date "2020.06.02"]
[Round "7"]
[White "GoValya"]
[Black "Cecile-Haussernot"]
[Result "0-1"]
[WhiteElo "2176"]
[BlackElo "2352"]
[TimeControl "180+1"]
[EndTime "11:18:08 PDT"]
[Termination "Cecile-Haussernot won by checkmate"]

1. d4 {[%clk 0:03:00.9]} 1... b6 {[%clk 0:02:59.2]} 2. c4 {[%clk 0:02:59]} 2...
Bb7 {[%clk 0:02:59.4]} 3. Nc3 {[%clk 0:02:59.3]} 3... g6 {[%clk 0:02:59.6]} 4.
e4 {[%clk 0:02:59.1]} 4... Bg7 {[%clk 0:03:00]} 5. Nf3 {[%clk 0:02:59]} 5... e6
{[%clk 0:03:00.3]} 6. d5 {[%clk 0:02:58.7]} 6... Ne7 {[%clk 0:02:59.5]} 7. Be2
{[%clk 0:02:45]} 7... O-O {[%clk 0:02:59.3]} 8. e5 {[%clk 0:02:41.8]} 8... d6
{[%clk 0:02:56.7]} 9. dxe6 {[%clk 0:02:37.4]} 9... fxe6 {[%clk 0:02:57.6]} 10.
exd6 {[%clk 0:02:33.8]} 10... cxd6 {[%clk 0:02:58.5]} 11. O-O {[%clk 0:02:31.7]}
11... Na6 {[%clk 0:02:55.2]} 12. Ng5 {[%clk 0:02:23.5]} 12... Nc7 {[%clk
0:02:48.5]} 13. Nb5 {[%clk 0:02:21.8]} 13... Nxb5 {[%clk 0:02:45.6]} 14. cxb5
{[%clk 0:02:21.6]} 14... Qd7 {[%clk 0:02:45.1]} 15. Bg4 {[%clk 0:02:08.3]} 15...
Qxb5 {[%clk 0:02:38.1]} 16. Bxe6+ {[%clk 0:01:57.3]} 16... Kh8 {[%clk
0:02:37.8]} 17. Nf7+ {[%clk 0:01:57.4]} 17... Rxf7 {[%clk 0:02:37.9]} 18. Bxf7
{[%clk 0:01:57.6]} 18... Qc6 {[%clk 0:02:35.2]} 19. f3 {[%clk 0:01:53.1]} 19...
Rf8 {[%clk 0:02:34.3]} 20. Bb3 {[%clk 0:01:51.2]} 20... Qc5+ {[%clk 0:02:33.3]}
21. Kh1 {[%clk 0:01:50.3]} 21... Nf5 {[%clk 0:02:33.1]} 22. Qc2 {[%clk
0:01:36.8]} 22... Qd4 {[%clk 0:02:25.8]} 23. Rd1 {[%clk 0:01:30.5]} 23... Qh4
{[%clk 0:02:20]} 24. Qc4 {[%clk 0:01:23.3]} 24... Bd4 {[%clk 0:02:10.7]} 25. h3
{[%clk 0:00:12.4]} 25... Bxf3 {[%clk 0:02:02.8]} 26. Rxd4 {[%clk 0:00:10.9]}
26... Qxh3+ {[%clk 0:02:00.7]} 27. Kg1 {[%clk 0:00:10.5]} 27... Qxg2# {[%clk
0:02:00.3]} 0-1

[Event "*** SCC Grand Prix: Titled Tuesday Blitz"]
[Site "Chess.com"]
[Date "2020.06.02"]
[Round "7"]
[White "lifeissofun"]
[Black "amelia91"]
[Result "1-0"]
[WhiteElo "2265"]
[BlackElo "1967"]
[TimeControl "180+1"]
[EndTime "11:18:10 PDT"]
[Termination "lifeissofun won by resignation"]

1. e4 {[%clk 0:03:00.9]} 1... c5 {[%clk 0:02:59.5]} 2. Nf3 {[%clk 0:03:01.3]}
2... d6 {[%clk 0:02:59]} 3. d4 {[%clk 0:03:02.2]} 3... cxd4 {[%clk 0:02:57.8]}
4. Nxd4 {[%clk 0:03:03.1]} 4... Nf6 {[%clk 0:02:57.6]} 5. Nc3 {[%clk 0:03:03.6]}
5... Nc6 {[%clk 0:02:55.4]} 6. f3 {[%clk 0:02:59.6]} 6... e5 {[%clk 0:02:54.7]}
7. Nb3 {[%clk 0:02:56.5]} 7... Be6 {[%clk 0:02:53.4]} 8. Be3 {[%clk 0:02:56.6]}
8... Be7 {[%clk 0:02:52.5]} 9. Qd2 {[%clk 0:02:57]} 9... O-O {[%clk 0:02:43.5]}
10. O-O-O {[%clk 0:02:57.5]} 10... a6 {[%clk 0:02:42.1]} 11. g4 {[%clk
0:02:58.1]} 11... Qc7 {[%clk 0:02:38.2]} 12. h4 {[%clk 0:02:56.9]} 12... Rfd8
{[%clk 0:02:36.1]} 13. Nd5 {[%clk 0:02:54.6]} 13... Bxd5 {[%clk 0:02:35.2]} 14.
exd5 {[%clk 0:02:54.8]} 14... Nb8 {[%clk 0:02:27.9]} 15. h5 {[%clk 0:02:54]}
15... b5 {[%clk 0:02:17.4]} 16. g5 {[%clk 0:02:51.7]} 16... Nfd7 {[%clk
0:02:16.7]} 17. Bd3 {[%clk 0:02:48.4]} 17... Nb6 {[%clk 0:02:09.5]} 18. g6
{[%clk 0:02:45.1]} 18... Nc4 {[%clk 0:01:45.8]} 19. gxf7+ {[%clk 0:02:42.9]}
19... Kxf7 {[%clk 0:01:42.9]} 20. Qe2 {[%clk 0:02:31.9]} 20... Nxe3 {[%clk
0:01:39.6]} 21. Qxe3 {[%clk 0:02:32]} 21... h6 {[%clk 0:01:34.1]} 22. Kb1 {[%clk
0:02:25.5]} 22... Nd7 {[%clk 0:01:30.7]} 23. Rhg1 {[%clk 0:02:24.4]} 23... Nf6
{[%clk 0:01:27]} 24. f4 {[%clk 0:02:18.1]} 24... Nxd5 {[%clk 0:00:49.4]} 25.
Bg6+ {[%clk 0:02:16.3]} 25... Kf8 {[%clk 0:00:49.1]} 26. Rxd5 {[%clk 0:02:15.6]}
26... Rac8 {[%clk 0:00:48.7]} 27. fxe5 {[%clk 0:02:14.8]} 27... dxe5 {[%clk
0:00:47.1]} 28. Rf1+ {[%clk 0:02:09.5]} 28... Bf6 {[%clk 0:00:46.7]} 29. Rxd8+
{[%clk 0:01:56]} 29... Rxd8 {[%clk 0:00:44.4]} 30. Nc5 {[%clk 0:01:56.4]} 30...
Qd6 {[%clk 0:00:37.8]} 31. a3 {[%clk 0:01:46.8]} 31... Kg8 {[%clk 0:00:33.7]}
32. Nb7 {[%clk 0:01:45.5]} 1-0

[Event "*** SCC Grand Prix: Titled Tuesday Blitz"]
[Site "Chess.com"]
[Date "2020.06.02"]
[Round "7"]
[White "Bubachess1608"]
[Black "ecwinslow"]
[Result "1-0"]
[WhiteElo "2325"]
[BlackElo "2142"]
[TimeControl "180+1"]
[EndTime "11:18:12 PDT"]
[Termination "Bubachess1608 won by resignation"]

1. e4 {[%clk 0:03:00.9]} 1... c5 {[%clk 0:02:59.4]} 2. d3 {[%clk 0:03:00.4]}
2... Nc6 {[%clk 0:02:58]} 3. c3 {[%clk 0:02:59.5]} 3... g6 {[%clk 0:02:57.8]} 4.
f4 {[%clk 0:02:58.3]} 4... Bg7 {[%clk 0:02:57.4]} 5. Nf3 {[%clk 0:02:57.3]} 5...
d5 {[%clk 0:02:51.4]} 6. Qe2 {[%clk 0:02:56.3]} 6... dxe4 {[%clk 0:02:40.3]} 7.
dxe4 {[%clk 0:02:55.6]} 7... Nf6 {[%clk 0:02:40.2]} 8. g3 {[%clk 0:02:54.6]}
8... O-O {[%clk 0:02:39.2]} 9. Bg2 {[%clk 0:02:53.8]} 9... e5 {[%clk 0:02:38.8]}
10. O-O {[%clk 0:02:53]} 10... Re8 {[%clk 0:02:35.3]} 11. fxe5 {[%clk
0:02:49.2]} 11... Ng4 {[%clk 0:02:29]} 12. Bf4 {[%clk 0:02:47]} 12... Ngxe5
{[%clk 0:02:26.4]} 13. Nbd2 {[%clk 0:02:46.2]} 13... Be6 {[%clk 0:02:19.8]} 14.
Nxe5 {[%clk 0:02:43.7]} 14... Nxe5 {[%clk 0:02:19.4]} 15. Bxe5 {[%clk
0:02:40.9]} 15... Bxe5 {[%clk 0:02:18.3]} 16. Nc4 {[%clk 0:02:36.5]} 16... Bg7
{[%clk 0:02:10.1]} 17. Rad1 {[%clk 0:02:35]} 17... Qc7 {[%clk 0:02:09.8]} 18. a4
{[%clk 0:02:30.2]} 18... Rad8 {[%clk 0:02:04.1]} 19. Rxd8 {[%clk 0:02:29.1]}
19... Rxd8 {[%clk 0:02:03.7]} 20. e5 {[%clk 0:02:24.7]} 20... Bxc4 {[%clk
0:01:51.9]} 21. Qxc4 {[%clk 0:02:22.7]} 21... Bxe5 {[%clk 0:01:51.2]} 22. a5
{[%clk 0:02:05.6]} 22... b6 {[%clk 0:01:50.1]} 23. a6 {[%clk 0:02:01.8]} 23...
Kg7 {[%clk 0:01:48.2]} 24. Qe4 {[%clk 0:01:55.4]} 24... f5 {[%clk 0:01:43.7]}
25. Qb7 {[%clk 0:01:54.5]} 25... Qf7 {[%clk 0:01:36.6]} 26. Re1 {[%clk
0:01:52.2]} 26... Bf6 {[%clk 0:01:28.2]} 27. Bc6 {[%clk 0:01:40.9]} 27... h5
{[%clk 0:01:27.9]} 28. Be8 {[%clk 0:01:29.3]} 28... Rxe8 {[%clk 0:00:56.6]} 29.
Rxe8 {[%clk 0:01:27.6]} 29... h4 {[%clk 0:00:56.7]} 30. Ra8 {[%clk 0:01:19]} 1-0

[Event "*** SCC Grand Prix: Titled Tuesday Blitz"]
[Site "Chess.com"]
[Date "2020.06.02"]
[Round "7"]
[White "aleksa74"]
[Black "TigrVShlyape"]
[Result "0-1"]
[WhiteElo "2675"]
[BlackElo "2883"]
[TimeControl "180+1"]
[EndTime "11:18:14 PDT"]
[Termination "TigrVShlyape won by resignation"]

1. e4 {[%clk 0:03:00.9]} 1... e5 {[%clk 0:02:56.4]} 2. Nf3 {[%clk 0:03:01]} 2...
Nc6 {[%clk 0:02:33.8]} 3. Bb5 {[%clk 0:03:00.7]} 3... Nf6 {[%clk 0:02:32.4]} 4.
d3 {[%clk 0:03:00.2]} 4... d6 {[%clk 0:02:32.3]} 5. c3 {[%clk 0:02:57.4]} 5...
Bd7 {[%clk 0:02:32.4]} 6. Nbd2 {[%clk 0:02:56.1]} 6... g6 {[%clk 0:02:32.8]} 7.
Nf1 {[%clk 0:02:54.6]} 7... Bg7 {[%clk 0:02:33.3]} 8. Bg5 {[%clk 0:02:53.4]}
8... h6 {[%clk 0:02:32.2]} 9. Bh4 {[%clk 0:02:53.6]} 9... O-O {[%clk 0:02:32.7]}
10. Ne3 {[%clk 0:02:53.6]} 10... Qe8 {[%clk 0:02:32]} 11. Bxf6 {[%clk
0:02:52.1]} 11... Bxf6 {[%clk 0:02:30.8]} 12. Nd5 {[%clk 0:02:52.1]} 12... Qd8
{[%clk 0:02:27.9]} 13. Nxf6+ {[%clk 0:02:37.6]} 13... Qxf6 {[%clk 0:02:27.5]}
14. Nd2 {[%clk 0:02:30.7]} 14... Qg5 {[%clk 0:02:22.3]} 15. Qf3 {[%clk
0:01:41.3]} 15... f5 {[%clk 0:02:18.4]} 16. Qg3 {[%clk 0:01:41.3]} 16... Qf6
{[%clk 0:02:11.2]} 17. exf5 {[%clk 0:01:36.2]} 17... Bxf5 {[%clk 0:02:07.8]} 18.
O-O {[%clk 0:01:24.5]} 18... Be6 {[%clk 0:01:43.1]} 19. Rae1 {[%clk 0:01:10.6]}
19... Kh7 {[%clk 0:01:40.9]} 20. Bxc6 {[%clk 0:01:03.9]} 20... bxc6 {[%clk
0:01:40.3]} 21. b3 {[%clk 0:00:58.5]} 21... a5 {[%clk 0:01:39.6]} 22. d4 {[%clk
0:00:56.2]} 22... exd4 {[%clk 0:01:36.2]} 23. Ne4 {[%clk 0:00:56.3]} 23... Qf5
{[%clk 0:01:32.4]} 24. cxd4 {[%clk 0:00:50.7]} 24... a4 {[%clk 0:01:29.5]} 25.
Re3 {[%clk 0:00:46.7]} 25... axb3 {[%clk 0:01:27.9]} 26. axb3 {[%clk 0:00:46.3]}
26... Bd5 {[%clk 0:01:19.1]} 27. Rfe1 {[%clk 0:00:46.2]} 27... Bxe4 {[%clk
0:01:18.1]} 0-1

[Event "*** SCC Grand Prix: Titled Tuesday Blitz"]
[Site "Chess.com"]
[Date "2020.06.02"]
[Round "7"]
[White "EnergeticHay"]
[Black "mattcolins2025"]
[Result "0-1"]
[WhiteElo "2196"]
[BlackElo "2361"]
[TimeControl "180+1"]
[EndTime "11:18:14 PDT"]
[Termination "mattcolins2025 won by resignation"]

1. e4 {[%clk 0:03:00.9]} 1... c5 {[%clk 0:02:59.9]} 2. Nf3 {[%clk 0:03:00.7]}
2... e6 {[%clk 0:03:00.3]} 3. d4 {[%clk 0:03:01]} 3... cxd4 {[%clk 0:03:01.2]}
4. Nxd4 {[%clk 0:03:01.7]} 4... Nc6 {[%clk 0:03:01.9]} 5. Nc3 {[%clk 0:03:01.1]}
5... Qc7 {[%clk 0:03:02.3]} 6. Be3 {[%clk 0:03:01.1]} 6... a6 {[%clk 0:03:02.5]}
7. Qf3 {[%clk 0:03:01.7]} 7... Nf6 {[%clk 0:03:02.3]} 8. O-O-O {[%clk
0:03:01.5]} 8... Ne5 {[%clk 0:02:51.1]} 9. Qg3 {[%clk 0:03:01.5]} 9... d6 {[%clk
0:02:51.5]} 10. f4 {[%clk 0:02:58.4]} 10... Nc6 {[%clk 0:02:43.4]} 11. Nxc6
{[%clk 0:02:55.2]} 11... bxc6 {[%clk 0:02:40.2]} 12. e5 {[%clk 0:02:51.3]} 12...
dxe5 {[%clk 0:02:40.3]} 13. fxe5 {[%clk 0:02:51.7]} 13... Nd7 {[%clk 0:02:40]}
14. Bf4 {[%clk 0:02:46]} 14... h6 {[%clk 0:02:39.7]} 15. h4 {[%clk 0:02:45.3]}
15... Rb8 {[%clk 0:02:35]} 16. Bc4 {[%clk 0:02:44.7]} 16... Qb6 {[%clk
0:02:21.3]} 17. Bb3 {[%clk 0:02:36.3]} 17... Nc5 {[%clk 0:02:18.9]} 18. Kb1
{[%clk 0:02:33.2]} 18... a5 {[%clk 0:02:14.1]} 19. Be3 {[%clk 0:02:24.7]} 19...
Qb4 {[%clk 0:02:11.7]} 20. Rd4 {[%clk 0:02:21.7]} 20... Qb7 {[%clk 0:02:07.7]}
21. Rhd1 {[%clk 0:02:19.3]} 21... Bd7 {[%clk 0:02:03.2]} 22. R4d2 {[%clk
0:01:31.9]} 22... a4 {[%clk 0:01:45.3]} 23. Nxa4 {[%clk 0:01:28.3]} 23... Nxa4
{[%clk 0:01:44.4]} 24. Rxd7 {[%clk 0:01:27.6]} 24... Qb5 {[%clk 0:01:40.9]} 25.
c4 {[%clk 0:01:12]} 25... Qa5 {[%clk 0:01:29.4]} 26. Qf2 {[%clk 0:01:02.1]}
26... Be7 {[%clk 0:01:20.2]} 27. Rf1 {[%clk 0:00:41.7]} 27... Kxd7 {[%clk
0:01:17]} 0-1

[Event "*** SCC Grand Prix: Titled Tuesday Blitz"]
[Site "Chess.com"]
[Date "2020.06.02"]
[Round "7"]
[White "kot60"]
[Black "Bhagya_2312"]
[Result "1-0"]
[WhiteElo "2447"]
[BlackElo "2162"]
[TimeControl "180+1"]
[EndTime "11:18:16 PDT"]
[Termination "kot60 won by resignation"]

1. e4 {[%clk 0:03:00.9]} 1... c6 {[%clk 0:02:59.6]} 2. d4 {[%clk 0:02:58.2]}
2... d5 {[%clk 0:02:59.7]} 3. f3 {[%clk 0:02:58.5]} 3... e6 {[%clk 0:02:58.5]}
4. Nd2 {[%clk 0:02:57.8]} 4... Nf6 {[%clk 0:02:50.6]} 5. c3 {[%clk 0:02:57]}
5... Nbd7 {[%clk 0:02:40.4]} 6. e5 {[%clk 0:02:55.7]} 6... Ng8 {[%clk
0:02:39.6]} 7. Bd3 {[%clk 0:02:54.7]} 7... c5 {[%clk 0:02:32.3]} 8. f4 {[%clk
0:02:53.8]} 8... Ne7 {[%clk 0:02:26]} 9. Ndf3 {[%clk 0:02:49.9]} 9... Nc6 {[%clk
0:02:25.1]} 10. Ne2 {[%clk 0:02:48.4]} 10... g6 {[%clk 0:02:20.4]} 11. O-O
{[%clk 0:02:46.7]} 11... Be7 {[%clk 0:02:14.3]} 12. a3 {[%clk 0:02:43.9]} 12...
c4 {[%clk 0:01:44.8]} 13. Bc2 {[%clk 0:02:42.4]} 13... O-O {[%clk 0:01:43.6]}
14. g4 {[%clk 0:02:31.2]} 14... f6 {[%clk 0:01:43]} 15. Ng3 {[%clk 0:02:26.7]}
15... fxe5 {[%clk 0:01:41.8]} 16. fxe5 {[%clk 0:02:25.2]} 16... b5 {[%clk
0:01:32.3]} 17. Bh6 {[%clk 0:02:13.4]} 17... Rf7 {[%clk 0:01:29.6]} 18. Qd2
{[%clk 0:02:11.1]} 18... a5 {[%clk 0:01:19.6]} 19. Ng5 {[%clk 0:02:09.2]} 19...
Rxf1+ {[%clk 0:01:11.4]} 20. Rxf1 {[%clk 0:02:07]} 20... Nf8 {[%clk 0:01:08.8]}
21. h4 {[%clk 0:01:36.6]} 21... Ra7 {[%clk 0:00:58.8]} 22. Qf2 {[%clk
0:01:14.9]} 1-0

[Event "*** SCC Grand Prix: Titled Tuesday Blitz"]
[Site "Chess.com"]
[Date "2020.06.02"]
[Round "7"]
[White "Khvicha_Supatashvili"]
[Black "vladislavkovalev"]
[Result "0-1"]
[WhiteElo "2732"]
[BlackElo "2877"]
[TimeControl "180+1"]
[EndTime "11:18:19 PDT"]
[Termination "vladislavkovalev won by resignation"]

1. e4 {[%clk 0:03:00.9]} 1... e5 {[%clk 0:03:00.1]} 2. Nf3 {[%clk 0:03:00.5]}
2... Nc6 {[%clk 0:03:00.7]} 3. Bb5 {[%clk 0:02:59.8]} 3... a6 {[%clk 0:03:01]}
4. Ba4 {[%clk 0:02:59.2]} 4... Nf6 {[%clk 0:03:01.5]} 5. d3 {[%clk 0:02:59.2]}
5... d6 {[%clk 0:03:01.5]} 6. c3 {[%clk 0:02:58.8]} 6... g6 {[%clk 0:03:02]} 7.
O-O {[%clk 0:02:58.4]} 7... Bg7 {[%clk 0:03:02.4]} 8. h3 {[%clk 0:02:58.8]} 8...
O-O {[%clk 0:03:03]} 9. Be3 {[%clk 0:02:59.1]} 9... b5 {[%clk 0:03:03.3]} 10.
Bb3 {[%clk 0:02:58.7]} 10... Na5 {[%clk 0:03:03.6]} 11. Bc2 {[%clk 0:02:58]}
11... c5 {[%clk 0:03:04.2]} 12. Nbd2 {[%clk 0:02:56.8]} 12... Re8 {[%clk
0:03:03.7]} 13. a4 {[%clk 0:02:54.1]} 13... Bb7 {[%clk 0:02:59.9]} 14. Re1
{[%clk 0:02:46.5]} 14... b4 {[%clk 0:03:00]} 15. Nb3 {[%clk 0:02:39.2]} 15...
Nc6 {[%clk 0:02:58.3]} 16. a5 {[%clk 0:02:34.3]} 16... Rb8 {[%clk 0:02:53.8]}
17. Bg5 {[%clk 0:02:17.9]} 17... h6 {[%clk 0:02:53.7]} 18. Bxf6 {[%clk
0:02:15.7]} 18... Bxf6 {[%clk 0:02:54.6]} 19. Nfd2 {[%clk 0:02:11.5]} 19... Bc8
{[%clk 0:02:45.6]} 20. Nc4 {[%clk 0:02:10.1]} 20... Be6 {[%clk 0:02:45.3]} 21.
Nbd2 {[%clk 0:02:09.8]} 21... Rf8 {[%clk 0:02:42.9]} 22. Ba4 {[%clk 0:02:01.2]}
22... Nxa5 {[%clk 0:02:28.3]} 23. Nxa5 {[%clk 0:01:59.4]} 23... Qxa5 {[%clk
0:02:29.2]} 24. Bd7 {[%clk 0:01:54.2]} 24... Qb6 {[%clk 0:02:28.8]} 25. Bxe6
{[%clk 0:01:53.1]} 25... fxe6 {[%clk 0:02:28.6]} 26. Qg4 {[%clk 0:01:51.5]}
26... Kf7 {[%clk 0:02:28.5]} 27. Nc4 {[%clk 0:01:49.3]} 27... Qc6 {[%clk
0:02:28]} 28. Ra5 {[%clk 0:01:38.4]} 28... Bd8 {[%clk 0:02:03.7]} 29. Ra2 {[%clk
0:01:34.8]} 29... h5 {[%clk 0:02:00.7]} 30. Qg3 {[%clk 0:01:32.6]} 30... Kg7
{[%clk 0:01:53.1]} 31. Rea1 {[%clk 0:01:29]} 31... Ra8 {[%clk 0:01:52.9]} 32.
Qe3 {[%clk 0:01:14.2]} 32... Bc7 {[%clk 0:01:48.8]} 33. h4 {[%clk 0:01:10.2]}
33... Rf7 {[%clk 0:01:41.9]} 34. g3 {[%clk 0:01:09]} 34... Qb5 {[%clk
0:01:40.2]} 35. Qd2 {[%clk 0:00:51.4]} 35... a5 {[%clk 0:01:38.5]} 36. Qc2
{[%clk 0:00:50]} 36... b3 {[%clk 0:01:36.9]} 0-1